bitfinex/quotes_BTCUSD_20220304
["timestamp","ask_amount","ask_price","bid_price","bid_amount"]
[1646387840402,0.05412964,41576.0,41571.0,0.00167112]
[1646387840599,0.11431664,41576.0,41571.0,0.00167112]
[1646387840800,0.365665,41575.0,41571.0,0.00167112]
[1646387841001,0.21995023,41572.0,41571.0,0.00167112]
[1646387841204,0.51995023,41572.0,41571.0,0.00167112]
[1646387841502,0.3,41572.0,41571.0,0.00167112]
[1646387841703,0.665665,41572.0,41571.0,0.00167112]
[1646387842804,0.365665,41571.0,41569.0,0.0011]
[1646387843005,1.4,41569.0,41563.0,0.0021]
[1646387843205,0.43057464,41568.0,41563.0,0.0021]
[1646387843446,0.3,41567.0,41563.0,0.0021]
[1646387843945,0.4972293,41566.0,41563.0,0.0021]
[1646387844146,0.3,41565.0,41563.0,0.0021]
[1646387845049,0.665665,41565.0,41563.0,0.0021]
[1646387845346,0.665665,41565.0,41559.0,0.001]
[1646387845347,1.825873,41564.0,41559.0,0.001]
[1646387845548,0.3,41563.0,41559.0,0.001]
[1646387845746,0.665665,41563.0,41559.0,0.001]
[1646387846351,1.765665,41562.0,41559.0,0.001]
[1646387846548,0.06330511,41561.0,41559.0,0.001]
[1646387846746,0.3,41560.0,41559.0,0.001]
[1646387847395,0.45430439,41560.0,41559.0,0.001]
[1646387847795,0.81996939,41560.0,41559.0,0.001]
[1646387848195,0.365665,41560.0,41559.0,0.001]
[1646387848797,0.048,41563.0,41560.0,0.20705021]
[1646387848999,0.31411899,41561.0,41542.0,0.0031]
[1646387849198,0.665665,41562.0,41542.0,0.063299]
[1646387849199,0.365665,41560.0,41542.0,0.063299]
[1646387849398,0.3,41559.0,41542.0,0.0031]
[1646387849796,0.09680587,41557.0,41542.0,0.0031]
[1646387849996,0.3,41556.0,41545.0,0.15908435]
[1646387851045,0.15919139,41560.0,41545.0,0.15908435]
[1646387851046,0.3,41559.0,41545.0,0.15908435]
[1646387851247,0.15919139,41560.0,41546.0,0.11243]
[1646387851449,0.1852,41561.0,41545.0,0.20908435]
[1646387851450,0.3,41559.0,41545.0,0.20908435]
[1646387851845,0.32403,41559.0,41545.0,0.20908435]
[1646387852045,0.3,41559.0,41548.0,0.18815553]
[1646387852346,0.24312872,41555.0,41545.0,0.20908435]
[1646387853145,0.31206998,41555.0,41545.0,0.20908435]
[1646387853345,0.24312872,41555.0,41545.0,0.20908435]
[1646387853746,0.3,41559.0,41545.0,0.20908435]
[1646387853946,0.3,41559.0,41550.0,0.19804699]
[1646387854149,0.365665,41558.0,41545.0,0.20908435]
[1646387854447,0.3,41559.0,41545.0,0.20908435]
[1646387854892,0.23847511,41554.0,41545.0,0.20908435]
[1646387855296,0.23847511,41554.0,41549.0,0.21211647]
[1646387856095,0.001,41557.0,41549.0,0.21211647]
[1646387856298,0.001,41557.0,41549.0,0.26211647]
[1646387857098,0.3,41559.0,41549.0,0.26211647]
[1646387857901,0.1852,41561.0,41549.0,0.26211647]
[1646387858098,0.27732599,41556.0,41549.0,0.26211647]
[1646387858342,0.3,41560.0,41549.0,0.26211647]
[1646387858746,0.35,41560.0,41549.0,0.26211647]
[1646387859343,0.3,41560.0,41551.0,0.28217382]
[1646387859544,0.182307,41562.0,41557.0,0.112388]
[1646387859545,0.1221,41562.0,41557.0,0.112388]
[1646387859745,0.1221,41562.0,41556.0,0.26199008]
[1646387859943,0.1591946,41566.0,41556.0,0.26199008]
[1646387860146,0.3,41571.0,41556.0,0.26199008]
[1646387860448,0.26369652,41566.0,41559.0,0.112374]
[1646387860643,0.26369652,41566.0,41557.0,0.048]
[1646387860843,0.26369652,41566.0,41560.0,0.17357667]
[1646387861042,0.35785494,41571.0,41559.0,0.05]
[1646387861043,0.3,41571.0,41559.0,0.05]
[1646387861247,0.29,41571.0,41557.0,0.048]
[1646387861444,0.31403,41571.0,41557.0,0.048]
[1646387861644,0.29,41571.0,41557.0,0.048]
[1646387862093,0.29,41571.0,41560.0,0.21190764]
[1646387862293,0.29,41571.0,41560.0,0.26190764]
[1646387862497,0.29,41571.0,41563.0,0.16827319]
[1646387862695,0.29,41571.0,41563.0,0.21827319]
[1646387862897,0.1611946,41573.0,41563.0,0.21827319]
[1646387863097,0.1224,41574.0,41566.0,0.26651474]
[1646387863298,0.1224,41574.0,41566.0,0.31651474]
[1646387863496,0.22678792,41577.0,41566.0,0.31651474]
[1646387863698,0.22678792,41577.0,41570.0,0.20338675]
[1646387863897,0.03618792,41577.0,41570.0,0.20338675]
[1646387864296,0.1631946,41578.0,41570.0,0.25338675]
[1646387864497,0.004,41578.0,41571.0,0.112342]
[1646387864897,0.004,41578.0,41572.0,0.112321]
[1646387865097,0.365665,41577.0,41570.0,0.05]
[1646387865298,0.07557,41579.0,41567.0,0.048]
[1646387865497,2.05538372,41577.0,41567.0,0.048]
[1646387865956,2.05538372,41577.0,41565.0,0.26848959]
[1646387865957,0.8,41575.0,41565.0,0.26848959]
[1646387866159,0.8,41575.0,41568.0,0.112334]
[1646387866160,0.3,41575.0,41568.0,0.112334]
[1646387866365,0.1591946,41576.0,41567.0,0.21335004]
[1646387866859,0.3,41578.0,41567.0,0.21335004]
[1646387867260,0.24474156,41575.0,41567.0,0.47559595]
[1646387867461,0.24474156,41575.0,41567.0,0.26335004]
[1646387867662,0.16321509,41577.0,41567.0,0.26335004]
[1646387868062,0.3,41578.0,41567.0,0.26335004]
[1646387868264,0.31312289,41563.0,41560.0,0.33225864]
[1646387868461,0.31312289,41563.0,41562.0,0.43923089]
[1646387868663,0.31312289,41563.0,41562.0,0.70947721]
[1646387870197,0.31312289,41563.0,41562.0,0.75947721]
[1646387871697,0.1591946,41575.0,41563.0,1.4]
[1646387871899,0.1591946,41577.0,41566.0,0.15]
[1646387872100,0.01,41583.0,41568.0,0.120317]
[1646387872301,0.01,41583.0,41569.0,0.160328]
[1646387872498,0.01,41583.0,41573.0,0.18017239]
[1646387872499,0.24729809,41579.0,41573.0,0.18017239]
[1646387872699,0.24729809,41579.0,41574.0,0.048]
[1646387875155,0.2055089,41578.0,41574.0,0.048]
[1646387875454,0.24729809,41579.0,41574.0,0.048]
[1646387875656,0.01,41583.0,41574.0,0.048]
[1646387875954,0.002,41582.0,41574.0,0.048]
[1646387876554,0.05772456,41581.0,41574.0,0.048]
[1646387877393,0.05772456,41581.0,41574.0,0.03445363]
[1646387877996,0.01,41583.0,41574.0,0.03445363]
[1646387878194,0.17773267,41582.0,41574.0,0.03445363]
[1646387878396,0.88299881,41581.0,41574.0,0.03445363]
[1646387878595,0.22672627,41568.0,41560.0,0.25990764]
[1646387878798,0.13940028,41573.0,41562.0,0.112355]
[1646387878994,0.13940028,41573.0,41556.0,0.112378]
[1646387878995,0.3,41572.0,41556.0,0.112378]
[1646387879394,0.3,41572.0,41562.0,0.21620858]
[1646387879795,0.2631826,41565.0,41562.0,0.21620858]
[1646387879995,0.3,41572.0,41563.0,0.112358]
[1646387880196,0.3,41572.0,41563.0,0.05]
[1646387880398,0.3,41572.0,41562.0,0.26620858]
[1646387881053,0.3,41572.0,41564.0,0.21684677]
[1646387881253,0.07920628,41573.0,41565.0,0.112351]
[1646387881455,0.07920628,41573.0,41564.0,0.32702477]
[1646387881652,0.07920628,41573.0,41565.0,0.112349]
[1646387882051,0.07920628,41573.0,41566.0,0.112346]
[1646387882052,0.2182086,41572.0,41566.0,0.112346]
[1646387882260,0.2182086,41572.0,41564.0,0.110178]
[1646387882554,0.2182086,41572.0,41564.0,0.060178]
[1646387883153,0.2182086,41572.0,41568.0,0.21659296]
[1646387883354,0.2182086,41572.0,41568.0,0.26659296]
[1646387883554,0.07420628,41573.0,41568.0,0.26659296]
[1646387884355,0.07420628,41573.0,41560.0,0.120358]
[1646387884604,0.3,41572.0,41560.0,0.170358]
[1646387885403,0.3,41572.0,41560.0,0.05]
[1646387885404,0.24430379,41561.0,41560.0,0.05]
[1646387885603,0.3,41564.0,41555.0,0.27845917]
[1646387885804,0.3,41568.0,41555.0,0.16485917]
[1646387886206,0.16522275,41563.0,41555.0,0.16485917]
[1646387886608,0.27255448,41558.0,41555.0,0.16485917]
[1646387887806,0.27255448,41558.0,41548.0,0.1152]
[1646387888006,0.27255448,41558.0,41547.0,0.120397]
[1646387888007,0.27255448,41558.0,41543.0,0.34715019]
[1646387888206,0.27255448,41558.0,41542.0,0.0031]
[1646387888207,0.32403,41557.0,41542.0,0.063311]
[1646387888655,0.46411899,41557.0,41545.0,0.18617087]
[1646387888857,0.26131272,41548.0,41545.0,0.18617087]
[1646387889056,0.3,41552.0,41545.0,0.18617087]
[1646387889257,0.3,41555.0,41545.0,0.18617087]
[1646387890162,0.07392065,41547.0,41542.0,0.0031]
[1646387890356,0.365665,41546.0,41542.0,0.0031]
[1646387890956,0.29095856,41547.0,41542.0,0.0031]
[1646387891358,0.27142762,41546.0,41542.0,0.0031]
[1646387892097,0.365665,41545.0,41542.0,0.0031]
[1646387892295,0.3,41544.0,41542.0,0.0031]
[1646387892495,0.365665,41543.0,41542.0,0.0031]
[1646387893695,0.665665,41543.0,41542.0,0.0031]
[1646387894196,0.3,41543.0,41542.0,0.0031]
[1646387894398,0.665665,41543.0,41542.0,0.0031]
[1646387894596,0.3,41543.0,41542.0,0.0031]
[1646387894796,0.16411899,41545.0,41542.0,0.0031]
[1646387894996,0.365665,41544.0,41542.0,0.0031]
[1646387895196,0.05,41547.0,41542.0,0.0031]
[1646387895595,0.05,41547.0,41542.0,0.0531]
[1646387895847,0.05,41547.0,41542.0,0.0031]
[1646387896249,0.21247552,41546.0,41542.0,0.0031]
[1646387896448,0.05,41547.0,41542.0,0.0031]
[1646387896653,0.365665,41546.0,41542.0,0.0031]
[1646387896851,0.3,41545.0,41542.0,0.0031]
[1646387897250,0.52978399,41544.0,41542.0,0.0031]
[1646387897452,1.56411899,41541.0,41526.0,0.001]
[1646387897752,0.54042312,41536.0,41526.0,0.001]
[1646387897950,0.84042312,41536.0,41526.0,0.001]
[1646387898353,0.0444,41527.0,41526.0,0.001]
[1646387898558,0.710065,41527.0,41526.0,0.001]
[1646387898750,0.410065,41527.0,41526.0,0.001]
[1646387899150,0.710065,41527.0,41526.0,0.001]
[1646387899599,0.86925913,41527.0,41526.0,0.001]
[1646387899798,0.410065,41527.0,41526.0,0.001]
[1646387899996,0.86925913,41527.0,41526.0,0.001]
[1646387900197,0.710065,41527.0,41526.0,0.001]
[1646387900397,0.86925913,41527.0,41526.0,0.001]
[1646387901198,0.91725913,41527.0,41526.0,0.001]
[1646387902600,0.61725913,41527.0,41526.0,0.001]
[1646387903100,0.458065,41527.0,41526.0,0.001]
[1646387904046,0.758065,41527.0,41526.0,0.001]
[1646387904246,0.458065,41527.0,41526.0,0.001]
[1646387904546,0.61725913,41527.0,41526.0,0.001]
[1646387904749,0.458065,41527.0,41526.0,0.001]
[1646387905150,0.0444,41527.0,41526.0,0.24828205]
[1646387905350,0.0444,41527.0,41526.0,0.29828205]
[1646387906149,0.0444,41527.0,41526.0,0.051]
[1646387906346,0.0444,41527.0,41526.0,0.001]
[1646387909299,0.410065,41527.0,41526.0,0.001]
[1646387910702,0.0444,41527.0,41526.0,0.001]
[1646387912646,0.0444,41527.0,41526.0,0.113521]
[1646387912846,0.0444,41527.0,41526.0,0.163521]
[1646387913047,0.0444,41527.0,41526.0,0.211521]
[1646387913247,0.5414,41541.0,41527.0,0.01340218]
[1646387913454,0.05,41541.0,41531.0,0.060227]
[1646387913648,0.05,41541.0,41531.0,0.108227]
[1646387913849,0.35,41541.0,41532.0,0.17139]
[1646387914247,0.2345573,41539.0,41532.0,0.22139]
[1646387914695,0.05,41541.0,41532.0,0.22139]
[1646387915496,0.05,41541.0,41532.0,0.402056]
[1646387915697,0.415665,41543.0,41533.0,0.47]
[1646387915901,0.21062506,41541.0,41536.0,0.060216]
[1646387916098,0.365665,41540.0,41536.0,0.060216]
[1646387916796,0.26185969,41538.0,41536.0,0.060216]
[1646387916996,0.365665,41537.0,41536.0,0.060216]
[1646387918098,0.665665,41537.0,41525.0,0.0011]
[1646387918354,0.16411899,41533.0,41525.0,0.0011]
[1646387918552,0.365665,41532.0,41525.0,0.0011]
[1646387918750,0.365665,41532.0,41527.0,0.060246]
[1646387919052,0.15919413,41536.0,41527.0,0.21934947]
[1646387919251,0.365665,41534.0,41527.0,0.21934947]
[1646387919453,0.56411899,41537.0,41527.0,0.21934947]
[1646387919454,0.4,41537.0,41527.0,0.21934947]
[1646387919664,0.52485913,41536.0,41527.0,0.21934947]
[1646387919950,0.365665,41537.0,41533.0,0.060232]
[1646387920152,0.68897812,41537.0,41533.0,0.060232]
[1646387920351,0.82978399,41537.0,41533.0,0.060232]
[1646387920551,0.98897812,41537.0,41533.0,0.060232]
[1646387920951,0.98897812,41537.0,41532.0,0.28796578]
[1646387921951,0.365665,41535.0,41532.0,0.28796578]
[1646387922211,0.365665,41535.0,41533.0,0.05]
[1646387923311,0.15919413,41537.0,41533.0,0.110231]
[1646387923511,0.15919413,41542.0,41534.0,0.048]
[1646387923711,0.16411899,41543.0,41534.0,0.048]
[1646387924112,0.365665,41542.0,41540.0,0.20895245]
[1646387924412,0.025,41549.0,41542.0,0.01424959]
[1646387924413,0.001,41543.0,41542.0,0.01424959]
[1646387924612,0.001,41543.0,41542.0,0.17197694]
[1646387924812,0.0359103,41553.0,41543.0,0.01179511]
[1646387925010,0.0359103,41553.0,41544.0,0.048]
[1646387925211,0.365665,41552.0,41549.0,0.15925148]
[1646387925410,0.365665,41552.0,41549.0,0.21796156]
[1646387925613,0.365665,41551.0,41549.0,0.21796156]
[1646387925862,0.03548736,41554.0,41549.0,0.21796156]
[1646387926063,0.365665,41553.0,41549.0,0.21796156]
[1646387926462,0.365665,41553.0,41548.0,0.108201]
[1646387926665,0.64660775,41553.0,41548.0,0.108201]
[1646387927364,2.40011465,41549.0,41548.0,0.158201]
[1646387927563,0.28094275,41553.0,41548.0,0.098]
[1646387927764,0.365665,41552.0,41548.0,0.098]
[1646387928465,0.28094275,41553.0,41540.0,0.01240782]
[1646387928664,0.365665,41552.0,41541.0,0.048]
[1646387928865,0.28094275,41553.0,41541.0,0.048]
[1646387929068,0.28094275,41553.0,41542.0,0.3]
[1646387929266,0.28094275,41553.0,41547.0,0.120403]
[1646387929267,0.365665,41552.0,41547.0,0.120403]
[1646387930296,0.365665,41552.0,41548.0,0.05]
[1646387930495,0.365665,41552.0,41545.0,0.120426]
[1646387930496,0.06880913,41551.0,41545.0,0.120426]
[1646387930800,0.365665,41550.0,41545.0,0.218426]
[1646387930996,0.365665,41548.0,41545.0,0.218426]
[1646387931998,0.56472632,41546.0,41545.0,0.170426]
[1646387932198,0.56472632,41546.0,41541.0,0.170435]
[1646387932398,0.365665,41545.0,41541.0,0.170435]
[1646387932598,0.23877922,41544.0,41541.0,0.120435]
[1646387932801,0.365665,41543.0,41536.0,0.120449]
[1646387933002,0.23877922,41544.0,41536.0,0.120449]
[1646387933199,0.365665,41543.0,41536.0,0.120449]
[1646387933460,0.18947301,41541.0,41536.0,0.120449]
[1646387933663,0.365665,41540.0,41536.0,0.120449]
[1646387933858,0.365665,41543.0,41536.0,0.120449]
[1646387934059,0.2661341,41542.0,41536.0,0.120449]
[1646387934359,0.2661341,41542.0,41538.0,0.16790069]
[1646387934360,0.005,41542.0,41538.0,0.16790069]
[1646387934759,0.005,41542.0,41540.0,0.20435008]
[1646387935159,0.005,41542.0,41540.0,0.42654825]
[1646387935362,0.005,41542.0,41538.0,0.16790069]
[1646387935560,0.38102774,41548.0,41538.0,0.16790069]
[1646387935561,0.57930751,41548.0,41538.0,0.16790069]
[1646387935760,0.365665,41547.0,41538.0,0.16790069]
[1646387936160,0.365665,41547.0,41538.0,0.21790069]
[1646387936461,0.365665,41547.0,41538.0,0.38304431]
[1646387936661,0.38102774,41548.0,41541.0,0.120417]
[1646387936662,0.16411899,41548.0,41541.0,0.120417]
[1646387936860,0.365665,41547.0,41541.0,0.120417]
[1646387937107,0.365665,41547.0,41541.0,0.170417]
[1646387937307,0.365665,41546.0,41541.0,0.170417]
[1646387937507,0.365665,41547.0,41541.0,0.170417]
[1646387937707,0.42828376,41547.0,41541.0,0.170417]
[1646387938310,0.42828376,41547.0,41541.0,0.120417]
[1646387938511,0.24298943,41542.0,41541.0,0.120417]
[1646387938710,0.06261876,41547.0,41541.0,0.120417]
[1646387938909,0.365665,41546.0,41541.0,0.120417]
[1646387939712,0.16411899,41548.0,41541.0,0.120417]
[1646387939910,0.26429603,41547.0,41541.0,0.120417]
[1646387940512,0.365665,41546.0,41541.0,0.120417]
[1646387940710,0.19827977,41550.0,41541.0,0.120417]
[1646387940949,0.365665,41549.0,41541.0,0.120417]
[1646387941350,0.19827977,41550.0,41542.0,0.3]
[1646387941552,0.33284884,41554.0,41542.0,0.3]
[1646387941553,0.19827977,41553.0,41542.0,0.3]
[1646387941749,0.39041248,41554.0,41546.0,0.15569375]
[1646387941949,0.365665,41553.0,41546.0,0.15569375]
[1646387942149,0.365665,41553.0,41546.0,0.25369375]
[1646387942650,0.365665,41553.0,41546.0,0.098]
[1646387942850,0.365665,41547.0,41546.0,0.098]
[1646387943051,0.365665,41547.0,41546.0,0.05]
[1646387943253,0.365665,41547.0,41544.0,0.05]
[1646387943254,0.665665,41547.0,41544.0,0.05]
[1646387943455,0.365665,41546.0,41544.0,0.05]
[1646387943853,0.3,41547.0,41544.0,0.05]
[1646387944051,0.365665,41546.0,41544.0,0.05]
[1646387946210,0.24028793,41545.0,41544.0,0.05]
[1646387946407,0.60595293,41545.0,41544.0,0.05]
[1646387946607,0.60595293,41545.0,41543.0,0.120424]
[1646387946807,0.60595293,41545.0,41544.0,0.05]
[1646387947208,0.90595293,41545.0,41541.0,0.120417]
[1646387947409,0.365665,41542.0,41535.0,0.060234]
[1646387947607,0.16411899,41543.0,41535.0,0.060234]
[1646387947608,0.61844312,41538.0,41535.0,0.060234]
[1646387947807,0.91844312,41538.0,41535.0,0.060234]
[1646387948008,0.21327264,41537.0,41535.0,0.060234]
[1646387948210,0.87893764,41537.0,41535.0,0.060234]
[1646387948446,0.365665,41536.0,41535.0,0.060234]
[1646387948645,0.665665,41536.0,41535.0,0.060234]
[1646387948851,0.71384964,41536.0,41535.0,0.060234]
[1646387949045,0.665665,41536.0,41530.0,0.120474]
[1646387949246,1.18914188,41531.0,41526.0,0.001]
[1646387949450,1.18914188,41531.0,41518.0,0.0031]
[1646387949451,1.765665,41526.0,41518.0,0.0031]
[1646387949650,1.765665,41526.0,41509.0,0.4097]
[1646387949651,0.42464847,41518.0,41509.0,0.4097]
[1646387949848,0.05891566,41509.0,41499.0,0.00110464]
[1646387950053,0.05891566,41509.0,41500.0,0.120557]
[1646387950054,0.365665,41509.0,41500.0,0.120557]
[1646387950248,0.365665,41505.0,41500.0,0.120557]
[1646387950448,0.365665,41505.0,41504.0,0.70591516]
[1646387950646,0.365665,41505.0,41504.0,0.75391516]
[1646387950857,0.365665,41505.0,41504.0,0.6479]
[1646387951048,0.365665,41505.0,41504.0,0.7779]
[1646387951248,0.19650738,41508.0,41504.0,0.7779]
[1646387951249,0.12457322,41508.0,41504.0,0.6479]
[1646387951459,0.22186926,41519.0,41509.0,0.20198213]
[1646387951660,0.304868,41524.0,41509.0,0.20198213]
[1646387951662,0.078,41525.0,41518.0,0.5999]
[1646387951856,0.078,41525.0,41510.0,0.348]
[1646387951857,0.365665,41524.0,41519.0,0.048]
[1646387952111,0.29736148,41531.0,41523.0,0.7299]
[1646387952112,0.060254,41528.0,41523.0,0.7299]
[1646387952310,0.006,41526.0,41524.0,0.108245]
[1646387952511,0.006,41526.0,41525.0,0.70586409]
[1646387952711,0.371665,41526.0,41525.0,0.6979]
[1646387952911,0.371665,41526.0,41525.0,0.80387303]
[1646387953111,0.006,41526.0,41525.0,0.80386282]
[1646387953313,0.29746149,41540.0,41526.0,1.11220088]
[1646387953512,0.4696896,41545.0,41539.0,0.5999]
[1646387953813,0.0412,41547.0,41543.0,0.70581435]
[1646387954017,0.0412,41547.0,41543.0,0.15591308]
[1646387954213,0.0412,41547.0,41546.0,0.5999]
[1646387954416,0.01,41549.0,41546.0,1.31859323]
[1646387954614,0.01,41553.0,41550.0,0.01382738]
[1646387954813,0.34819453,41561.0,41552.0,0.85565032]
[1646387955016,0.34819453,41561.0,41551.0,0.048]
[1646387955017,0.00120493,41561.0,41558.0,0.36578]
[1646387955214,0.00120426,41561.0,41560.0,0.2179302]
[1646387955416,0.00120426,41561.0,41560.0,0.1538532]
[1646387955613,0.00120426,41561.0,41560.0,0.34508123]
[1646387955863,0.00120426,41561.0,41560.0,0.71086123]
[1646387956264,0.00120426,41561.0,41560.0,0.5049479]
[1646387956464,0.00120391,41562.0,41560.0,0.34508123]
[1646387956768,0.22976162,41562.0,41561.0,0.10585447]
[1646387956964,0.00120391,41562.0,41561.0,0.10585447]
[1646387957564,0.00120391,41562.0,41561.0,0.15385447]
[1646387957763,0.00120391,41562.0,41561.0,0.10585447]
[1646387957965,0.025,41576.0,41561.0,0.10585447]
[1646387957966,0.00120389,41563.0,41562.0,0.64786709]
[1646387958166,0.00120389,41563.0,41562.0,1.15926832]
[1646387958465,0.3469896,41578.0,41569.0,0.17350016]
[1646387958665,0.3569896,41579.0,41570.0,0.060174]
[1646387958865,0.3469896,41578.0,41570.0,0.060174]
[1646387959067,0.28208139,41575.0,41570.0,0.060174]
[1646387959268,0.3569896,41579.0,41570.0,0.060174]
[1646387959467,0.01,41579.0,41570.0,0.060174]
[1646387960294,0.01,41579.0,41570.0,0.110174]
[1646387960495,0.24796469,41577.0,41570.0,0.110174]
[1646387961095,0.24796469,41578.0,41570.0,0.110174]
[1646387961695,0.1983113,41576.0,41572.0,0.13]
[1646387961896,0.1983113,41576.0,41570.0,0.110174]
[1646387962095,0.25796469,41579.0,41570.0,0.110174]
[1646387962096,0.1983113,41577.0,41570.0,0.110174]
[1646387962398,0.44731609,41577.0,41570.0,0.29934934]
[1646387962597,0.44731609,41577.0,41570.0,0.110174]
[1646387962797,0.1983113,41576.0,41570.0,0.110174]
[1646387963447,0.24900479,41577.0,41570.0,0.110174]
[1646387963946,0.04920628,41573.0,41570.0,0.110174]
[1646387964946,0.36743528,41579.0,41572.0,0.316491]
[1646387965148,0.01,41579.0,41572.0,0.316491]
[1646387965348,0.01,41579.0,41573.0,0.05]
[1646387965547,0.01,41583.0,41581.0,0.2196306]
[1646387965746,0.19924639,41579.0,41578.0,0.17603809]
[1646387965949,0.19924639,41579.0,41578.0,0.49246909]
[1646387966147,0.19924639,41579.0,41578.0,0.17603809]
[1646387966348,0.19924639,41579.0,41578.0,0.49247309]
[1646387966851,0.01,41583.0,41578.0,0.17603809]
[1646387967107,0.01,41583.0,41579.0,0.316425]
[1646387967302,0.01,41583.0,41578.0,0.22603809]
[1646387967502,0.01,41583.0,41579.0,0.316424]
[1646387967706,0.01,41583.0,41579.0,0.616424]
[1646387968004,0.1983113,41589.0,41580.0,1.3]
[1646387968005,0.35743528,41589.0,41580.0,1.3]
[1646387968204,0.1983113,41593.0,41581.0,0.590434]
[1646387968403,0.18670587,41594.0,41589.0,0.316333]
[1646387968605,0.29746696,41599.0,41589.0,0.316333]
[1646387968606,0.18670587,41595.0,41589.0,0.376467]
[1646387968802,0.18670587,41595.0,41589.0,0.426467]
[1646387969203,0.18670587,41595.0,41589.0,0.110134]
[1646387969404,0.49652214,41599.0,41589.0,0.360134]
[1646387969608,0.49652214,41599.0,41595.0,0.23415676]
[1646387969805,0.24796469,41599.0,41595.0,0.28415676]
[1646387970308,0.24796469,41599.0,41588.0,0.120268]
[1646387970510,0.24796469,41598.0,41588.0,0.170268]
[1646387970852,0.23945697,41593.0,41588.0,0.170268]
[1646387971250,0.4309862,41593.0,41588.0,0.170268]
[1646387971451,1.96498555,41591.0,41579.0,0.1819]
[1646387971680,1.96498555,41591.0,41578.0,0.0130255]
[1646387971853,1.96498555,41591.0,41576.0,0.01254723]
[1646387972050,0.26655608,41582.0,41577.0,0.01118644]
[1646387972255,0.17887759,41585.0,41578.0,0.316426]
[1646387972450,2.13954942,41591.0,41579.0,0.19706665]
[1646387972651,0.66563163,41590.0,41579.0,0.19706665]
[1646387972855,0.060165,41588.0,41579.0,0.19706665]
[1646387973152,0.665699,41587.0,41579.0,0.19706665]
[1646387973351,0.2130262,41586.0,41579.0,0.19706665]
[1646387973551,0.365699,41585.0,41579.0,0.19706665]
[1646387973752,0.365699,41585.0,41575.0,0.08439]
[1646387973753,0.12732593,41569.0,41566.0,0.48674561]
[1646387973953,0.12732593,41569.0,41568.0,0.316528]
[1646387974806,0.369695,41569.0,41568.0,0.316528]
[1646387975206,0.369695,41569.0,41568.0,0.05]
[1646387975404,0.369695,41569.0,41567.0,0.316535]
[1646387975604,0.369695,41569.0,41567.0,0.316536]
[1646387975806,0.12732593,41569.0,41568.0,0.316528]
[1646387976004,0.12732593,41569.0,41567.0,0.316535]
[1646387976604,0.12732593,41569.0,41567.0,0.33054572]
[1646387976805,0.12732593,41569.0,41568.0,0.01218821]
[1646387977004,0.12732593,41569.0,41568.0,0.316527]
[1646387977204,0.12732593,41569.0,41568.0,0.366527]
[1646387977407,0.3,41587.0,41569.0,1.4]
[1646387977605,0.2641,41589.0,41573.0,0.060154]
[1646387977805,0.21568515,41584.0,41576.0,0.20907555]
[1646387978007,0.21568515,41584.0,41573.0,0.060154]
[1646387978450,0.26109768,41582.0,41580.0,0.19333402]
[1646387978654,0.26109768,41582.0,41580.0,0.24333402]
[1646387979450,0.3,41587.0,41580.0,0.24333402]
[1646387980455,0.26484761,41586.0,41581.0,0.21631416]
[1646387980653,0.26484761,41586.0,41580.0,0.24333402]
[1646387981154,0.26484761,41586.0,41580.0,0.05]
[1646387981355,0.26484761,41586.0,41577.0,0.170318]
[1646387981552,0.27824598,41579.0,41577.0,0.170318]
[1646387981752,0.0642404,41589.0,41577.0,0.170318]
[1646387981952,0.365699,41588.0,41577.0,0.170318]
[1646387982201,0.3,41587.0,41578.0,0.17152039]
[1646387982403,0.5544,41590.0,41578.0,0.17152039]
[1646387982604,0.17314482,41588.0,41578.0,0.17152039]
[1646387982801,0.26991043,41584.0,41578.0,0.17152039]
[1646387983402,0.20261865,41581.0,41578.0,0.17152039]
[1646387983602,0.20261865,41581.0,41577.0,0.170318]
[1646387983603,0.365699,41580.0,41577.0,0.05]
[1646387983802,0.365699,41580.0,41573.0,0.170334]
[1646387984002,0.20261865,41581.0,41573.0,0.170334]
[1646387984202,0.06477209,41579.0,41573.0,0.05]
[1646387984403,0.28616784,41571.0,41569.0,0.120342]
[1646387984604,0.5544,41574.0,41568.0,0.17458797]
[1646387984804,0.5544,41574.0,41566.0,0.120354]
[1646387985205,0.060183,41575.0,41566.0,0.120354]
[1646387985403,0.5544,41570.0,41566.0,0.120354]
[1646387985604,0.19830804,41569.0,41566.0,0.120354]
[1646387985848,0.4708795,41569.0,41567.0,0.16039397]
[1646387986249,0.27257146,41569.0,41567.0,0.21039397]
[1646387986456,0.27257146,41569.0,41567.0,0.16039397]
[1646387986651,0.365699,41568.0,41566.0,0.120354]
[1646387986849,0.27257146,41569.0,41566.0,0.120354]
[1646387987049,0.27257146,41569.0,41567.0,0.01123534]
[1646387987248,0.365699,41568.0,41567.0,0.01123534]
[1646387987453,0.27257146,41569.0,41566.0,0.1340904]
[1646387987651,0.15615254,41568.0,41567.0,0.19867089]
[1646387987855,0.52185154,41568.0,41567.0,0.19867089]
[1646387988054,0.365699,41567.0,41566.0,0.0137364]
[1646387988253,0.930099,41567.0,41554.0,0.51403]
[1646387988453,0.5544,41564.0,41553.0,0.02503]
[1646387988653,0.5544,41564.0,41555.0,0.01015173]
[1646387988852,0.18983574,41561.0,41556.0,0.0130183]
[1646387989053,0.18983574,41561.0,41557.0,0.01014458]
[1646387989054,0.2609888,41560.0,41557.0,0.01014458]
[1646387990205,0.5544,41564.0,41557.0,0.25080658]
[1646387990412,0.17857388,41562.0,41558.0,0.01293723]
[1646387990607,0.17857388,41562.0,41559.0,0.01190454]
[1646387991205,0.25851321,41560.0,41559.0,0.01190454]
[1646387993207,0.002,41561.0,41559.0,0.01190454]
[1646387994258,0.78722079,41562.0,41559.0,0.01190454]
[1646387994455,0.5544,41562.0,41559.0,0.01190454]
[1646387994855,0.19329,41562.0,41559.0,0.01190454]
[1646387995055,0.19329,41562.0,41560.0,0.316603]